fUST/lending_fUST_20250315
["ID","MTS","AMOUNT","RATE_DAILY","PERIOD"]
[356149755,1741971032385,-500.0,8.219e-05,2]
[356149756,1741971032395,-519.7,8.219e-05,2]
[356149759,1741971032405,-500.0,8.219e-05,2]
[356149761,1741971032415,-500.0,8.219e-05,2]
[356149763,1741971032425,-565.11,8.219e-05,2]
[356149765,1741971032435,-500.0,8.219e-05,2]
[356149767,1741971032446,-556.03,8.219e-05,2]
[356149769,1741971032455,-570.18,8.219e-05,2]
[356149770,1741971032464,-500.0,8.219e-05,2]
[356149772,1741971032474,-289.90708089,8.219e-05,2]
[356149774,1741971032483,-500.0,8.219e-05,2]
[356149776,1741971032492,-500.0,8.219e-05,2]
[356149778,1741971032501,-800.41,8.219e-05,2]
[356149779,1741971032510,-500.0,8.219e-05,2]
[356149780,1741971032519,-500.0,8.219e-05,2]
[356149781,1741971032528,-500.0,8.219e-05,2]
[356149782,1741971032537,-500.0,8.219e-05,2]
[356149783,1741971032546,-500.0,8.219e-05,2]
[356149784,1741971032555,-591.75,8.219e-05,2]
[356149785,1741971032564,-500.0,8.219e-05,2]
[356149786,1741971032573,-500.0,8.219e-05,2]
[356149787,1741971032582,-500.0,8.219e-05,2]
[356149788,1741971032590,-500.0,8.219e-05,2]
[356149789,1741971032600,-500.0,8.219e-05,2]
[356149790,1741971032609,-500.0,8.219e-05,2]
[356149791,1741971032618,-500.0,8.219e-05,2]
[356149792,1741971032628,-500.0,8.219e-05,2]
[356149793,1741971032637,-500.0,8.219e-05,2]
[356149794,1741971032646,-500.0,8.219e-05,2]
[356149795,1741971032655,-500.0,8.219e-05,2]
[356149796,1741971032664,-500.0,8.219e-05,2]
[356149797,1741971032673,-500.0,8.219e-05,2]
[356149798,1741971032683,-565.61733997,8.219e-05,2]
[356149799,1741971032697,-500.0,8.219e-05,2]
[356149800,1741971032706,-500.0,8.219e-05,2]
[356149801,1741971032715,-500.0,8.219e-05,2]
[356149802,1741971032725,-1285.52,8.219e-05,2]
[356149803,1741971032735,-500.0,8.219e-05,2]
[356149804,1741971032745,-500.0,8.219e-05,2]
[356149805,1741971032754,-500.0,8.219e-05,2]
[356149806,1741971032764,-500.0,8.219e-05,2]
[356149807,1741971032774,-636.9888253,8.219e-05,2]
[356149808,1741971032785,-527.11822206,8.219e-05,2]
[356149809,1741971032794,-586.91210862,8.219e-05,2]
[356149810,1741971032803,-1177.44,8.219e-05,2]
[356149811,1741971032813,-500.0,8.219e-05,2]
[356149812,1741971032822,-608.57,8.219e-05,2]
[356149813,1741971032832,-527.96979986,8.219e-05,2]
[356149814,1741971032843,-872.65,8.219e-05,2]
[356149815,1741971032852,-652.92,8.219e-05,2]
[356149816,1741971032862,-500.0,8.219e-05,2]
[356149817,1741971032872,-1163.6,8.219e-05,2]
[356149818,1741971032882,-500.0,8.219e-05,2]
[356149819,1741971032891,-500.0,8.219e-05,2]
[356149820,1741971032902,-685.44,8.219e-05,2]
[356149821,1741971032912,-546.88111779,8.219e-05,2]
[356149822,1741971032922,-500.0,8.219e-05,2]
[356149823,1741971032932,-500.0,8.219e-05,2]
[356149824,1741971032942,-537.22,8.219e-05,2]
[356149825,1741971032952,-500.0,8.219e-05,2]
[356149826,1741971032961,-724.94,8.219e-05,2]
[356149827,1741971032971,-590.98,8.219e-05,2]
[356149828,1741971032981,-500.0,8.219e-05,2]
[356149829,1741971032991,-500.0,8.219e-05,2]
[356149830,1741971033001,-566.32966444,8.219e-05,2]
[356149831,1741971033011,-632.11,8.219e-05,2]
[356149832,1741971033021,-500.0,8.219e-05,2]
[356149833,1741971033032,-578.81,8.219e-05,2]
[356149834,1741971033042,-340.76655195,8.219e-05,2]
[356149835,1741971033292,-551.01,8.219e-05,2]
[356149836,1741971033302,-500.0,8.219e-05,2]
[356149837,1741971033313,-500.0,8.219e-05,2]
[356149838,1741971033322,-546.49,8.219e-05,2]
[356149839,1741971033332,-1084.27,8.219e-05,2]
[356149840,1741971033342,-500.0,8.219e-05,2]
[356149841,1741971033352,-625.18,8.219e-05,2]
[356149842,1741971033362,-747.86,8.219e-05,2]
[356149843,1741971033372,-697.43,8.219e-05,2]
[356149844,1741971033382,-548.15,8.219e-05,2]
[356149845,1741971033393,-500.0,8.219e-05,2]
[356149846,1741971033403,-608.65,8.219e-05,2]
[356149847,1741971033413,-558.68,8.219e-05,2]
[356149848,1741971033423,-535.13,8.219e-05,2]
[356149849,1741971033433,-500.0,8.219e-05,2]
[356149850,1741971033447,-500.0,8.219e-05,2]
[356149851,1741971033456,-38.83513716,8.219e-05,2]
[356149852,1741971033472,-578.25486284,8.219e-05,2]
[356149853,1741971033482,-5697.51,8.219e-05,2]
[356149854,1741971033491,-500.0,8.219e-05,2]
[356149855,1741971033501,-500.0,8.219e-05,2]
[356149856,1741971033511,-500.0,8.219e-05,2]
[356149857,1741971033521,-723.41,8.219e-05,2]
[356149858,1741971033531,-500.0,8.219e-05,2]
[356149859,1741971033540,-500.0,8.219e-05,2]
[356149860,1741971033551,-500.0,8.219e-05,2]
[356149861,1741971033560,-500.0,8.219e-05,2]
[356149862,1741971033570,-500.0,8.219e-05,2]
[356149863,1741971033580,-500.0,8.219e-05,2]
[356149864,1741971033590,-489.37611628,8.219e-05,2]
[356149865,1741971033600,-1007.18,8.219e-05,2]
[356149866,1741971033610,-500.0,8.219e-05,2]
[356149867,1741971033619,-500.0,8.219e-05,2]
[356149868,1741971033629,-500.0,8.219e-05,2]
[356149869,1741971033639,-500.0,8.219e-05,2]
[356149870,1741971033649,-500.0,8.219e-05,2]
[356149871,1741971033659,-500.0,8.219e-05,2]
[356149872,1741971033669,-522.19,8.219e-05,2]
[356149873,1741971033679,-500.0,8.219e-05,2]
[356149874,1741971033696,-500.0,8.219e-05,2]
[356149875,1741971033706,-9500.25,8.219e-05,2]
[356149876,1741971033716,-722.8,8.219e-05,2]
[356149877,1741971033727,-1025.37,8.219e-05,2]
[356149878,1741971033737,-598.5,8.219e-05,2]
[356149879,1741971033747,-500.0,8.219e-05,2]
[356149880,1741971033757,-500.0,8.219e-05,2]
[356149881,1741971033767,-10868.71615061,8.219e-05,2]
[356149882,1741971033780,-1256.79446506,8.219e-05,2]
[356149893,1741971037675,-12500.08938433,8.219e-05,2]
[356149894,1741971037689,-500.0,8.219e-05,2]
[356149895,1741971037709,-3015.18916134,8.219e-05,2]
[356149896,1741971037724,-1066.16083866,8.219e-05,2]
[356149897,1741971037734,-1322.17,8.219e-05,2]
[356149898,1741971037743,-852.22,8.219e-05,2]
[356149899,1741971037753,-500.0,8.219e-05,2]
[356149900,1741971037762,-1272.74,8.219e-05,2]
[356149901,1741971037772,-6658.17,8.219e-05,2]
[356149902,1741971037783,-500.0,8.219e-05,2]
[356149904,1741971037795,-1739.29,8.219e-05,2]
[356149905,1741971037806,-500.0,8.219e-05,2]
[356149906,1741971037820,-500.0,8.219e-05,2]
[356149907,1741971037831,-1712.38,8.219e-05,2]
[356149908,1741971037840,-500.0,8.219e-05,2]
[356149909,1741971037850,-5492.95,8.219e-05,2]
[356149910,1741971037860,-500.0,8.219e-05,2]
[356149911,1741971037869,-1065.45,8.219e-05,2]
[356149913,1741971037879,-1186.14,8.219e-05,2]
[356149914,1741971037889,-525.45,8.219e-05,2]
[356149915,1741971037898,-500.0,8.219e-05,2]
[356149916,1741971037908,-1276.61,8.219e-05,2]
[356149917,1741971037918,-500.0,8.219e-05,2]
[356149918,1741971037928,-500.0,8.219e-05,2]
[356149919,1741971037938,-2183.82,8.219e-05,2]
[356149920,1741971037949,-607.58,8.219e-05,2]
[356149921,1741971037959,-16392.68,8.219e-05,2]
[356149922,1741971037969,-500.0,8.219e-05,2]
[356149923,1741971037978,-500.0,8.219e-05,2]
[356149924,1741971037989,-1432.63,8.219e-05,2]
[356149925,1741971037999,-517.8355287,8.219e-05,2]
[356149926,1741971038010,-842.3,8.219e-05,2]
[356149927,1741971038020,-500.0,8.219e-05,2]
[356149928,1741971038030,-584.52,8.219e-05,2]
[356149929,1741971038040,-500.0,8.219e-05,2]
[356149930,1741971038049,-8734.37,8.219e-05,2]
[356149931,1741971038059,-500.0,8.219e-05,2]
[356149932,1741971038068,-500.0,8.219e-05,2]
[356149933,1741971038078,-500.0,8.219e-05,2]
[356149934,1741971038087,-500.0,8.219e-05,2]
[356149935,1741971038097,-811.39,8.219e-05,2]
[356149936,1741971038107,-1398.92,8.219e-05,2]
[356149937,1741971038116,-564.33,8.219e-05,2]
[356149938,1741971038126,-11510.58,8.219e-05,2]
[356149939,1741971038136,-500.0,8.219e-05,2]
[356149940,1741971038146,-500.0,8.219e-05,2]
[356149941,1741971038156,-4632.86,8.219e-05,2]
[356149942,1741971038166,-500.0,8.219e-05,2]
[356149943,1741971038175,-500.0,8.219e-05,2]
[356149944,1741971038185,-3611.94,8.219e-05,2]
[356149945,1741971038194,-500.0,8.219e-05,2]
[356149946,1741971038204,-189.35435377,8.219e-05,2]
[356149947,1741971038213,-20895.98,8.219e-05,2]
[356149948,1741971038223,-500.0,8.219e-05,2]
[356149949,1741971038233,-17171.58,8.219e-05,2]
[356149950,1741971038243,-500.0,8.219e-05,2]
[356149951,1741971038252,-500.0,8.219e-05,2]
[356149952,1741971038262,-500.0,8.219e-05,2]
[356149953,1741971038273,-500.0,8.219e-05,2]
[356149954,1741971038283,-858.84,8.219e-05,2]
[356149955,1741971038293,-868.76,8.219e-05,2]
[356149956,1741971038302,-500.0,8.219e-05,2]
[356149957,1741971038312,-3464.44,8.219e-05,2]
[356149958,1741971038322,-500.0,8.219e-05,2]
[356149959,1741971038331,-500.0,8.219e-05,2]
[356149960,1741971038340,-500.0,8.219e-05,2]
[356149961,1741971038350,-500.0,8.219e-05,2]
[356149962,1741971038360,-1212.72,8.219e-05,2]
[356149963,1741971038369,-6040.24,8.219e-05,2]
[356149964,1741971038379,-500.0,8.219e-05,2]
[356149965,1741971038388,-500.0,8.219e-05,2]
[356149966,1741971038398,-500.0,8.219e-05,2]
[356149967,1741971038411,-500.0,8.219e-05,2]
[356149968,1741971038424,-500.0,8.219e-05,2]
[356149969,1741971038438,-8011.61,8.219e-05,2]
[356149970,1741971038452,-4566.58,8.219e-05,2]
[356149971,1741971038464,-500.0,8.219e-05,2]
[356149972,1741971038477,-589.79,8.219e-05,2]
[356149973,1741971038487,-229.47796724,8.219e-05,2]
[356149974,1741971038498,-550.31,8.219e-05,2]
[356149975,1741971038509,-500.0,8.219e-05,2]
[356149976,1741971038521,-1179.64,8.219e-05,2]
[356149977,1741971038532,-18575.46,8.219e-05,2]
[356149978,1741971038544,-398.25469694,8.219e-05,2]
[356149979,1741971038556,-500.0,8.219e-05,2]
[356149980,1741971038569,-1061.24,8.219e-05,2]
[356149981,1741971038581,-1571.73,8.219e-05,2]
[356149982,1741971038593,-2914.26,8.219e-05,2]
[356149983,1741971038605,-500.0,8.219e-05,2]
[356149984,1741971038617,-12656.97,8.219e-05,2]
[356149985,1741971038629,-500.0,8.219e-05,2]
[356149986,1741971038641,-500.0,8.219e-05,2]
[356149987,1741971038653,-715.16,8.219e-05,2]
[356149988,1741971038666,-520.37,8.219e-05,2]
[356149989,1741971038677,-500.0,8.219e-05,2]
[356149990,1741971038691,-500.0,8.219e-05,2]
[356149991,1741971038703,-160.7008346,8.219e-05,2]
[356149992,1741971038713,-500.0,8.219e-05,2]
[356149993,1741971038725,-500.0,8.219e-05,2]
[356149994,1741971038736,-500.0,8.219e-05,2]
[356149995,1741971038748,-876.33,8.219e-05,2]
[356149996,1741971038761,-500.0,8.219e-05,2]
[356149997,1741971038774,-500.0,8.219e-05,2]
[356149998,1741971038785,-516.13,8.219e-05,2]
[356149999,1741971038797,-6686.39,8.219e-05,2]
[356150000,1741971038807,-500.0,8.219e-05,2]
[356150001,1741971038817,-500.0,8.219e-05,2]
[356150002,1741971038827,-500.0,8.219e-05,2]
[356150003,1741971038839,-2351.77,8.219e-05,2]
[356150004,1741971038850,-500.0,8.219e-05,2]
[356150005,1741971038860,-1451.75,8.219e-05,2]
[356150006,1741971038872,-625.26248478,8.219e-05,2]
[356150007,1741971038884,-151.0,8.219e-05,2]
[356150008,1741971038897,-10000.0,8.219e-05,2]
[356150009,1741971038909,-465.04994695,8.224e-05,2]
[356150010,1741971038921,-259.936,8.353e-05,2]
[356150011,1741971038933,-564.214,8.353e-05,2]
[356150012,1741971038945,-1914.0,8.353e-05,2]
[356150013,1741971038957,-2270.0,8.353e-05,2]
[356150014,1741971038969,-421.883,8.353e-05,2]
[356150015,1741971038982,-399.0,8.353e-05,2]
[356150016,1741971038994,-189.35435377,8.356e-05,2]
[356150017,1741971039004,-500.0,8.473e-05,2]
[356150018,1741971039014,-500.0,8.473e-05,2]
[356150019,1741971039024,-500.0,8.473e-05,2]
[356150020,1741971039035,-367.37164002,8.492e-05,2]
[356150021,1741971039045,-500.0,8.493e-05,2]
[356150022,1741971039056,-150.35,8.493e-05,2]
[356150023,1741971039068,-500.0,8.493e-05,2]
[356150024,1741971039080,-500.0,8.493e-05,2]
[356150025,1741971039092,-500.0,8.493e-05,2]
[356150026,1741971039104,-700.5,8.493e-05,2]
[356150027,1741971039116,-500.0,8.493e-05,2]
[356150028,1741971039126,-564.8,8.493e-05,2]
[356150029,1741971039140,-500.0,8.493e-05,2]
[356150030,1741971039151,-515.31,8.493e-05,2]
[356150031,1741971039162,-500.0,8.493e-05,2]
[356150032,1741971039173,-500.0,8.493e-05,2]
[356150033,1741971039186,-553.68,8.493e-05,2]
[356150034,1741971039198,-500.0,8.493e-05,2]
[356150035,1741971039209,-500.62408014,8.493e-05,2]
[356150036,1741971039220,-500.0,8.493e-05,2]
[356150037,1741971039231,-694.47,8.493e-05,2]
[356150038,1741971039241,-500.0,8.493e-05,2]
[356150039,1741971039251,-1029.84,8.493e-05,2]
[356150040,1741971039262,-500.0,8.493e-05,2]
[356150041,1741971039273,-500.0,8.493e-05,2]
[356150042,1741971039284,-734.5,8.493e-05,2]
[356150043,1741971039294,-500.0,8.493e-05,2]
[356150044,1741971039305,-1206.34,8.493e-05,2]
[356150045,1741971039316,-500.0,8.493e-05,2]
[356150046,1741971039327,-500.0,8.493e-05,2]
[356150047,1741971039338,-500.0,8.493e-05,2]
[356150048,1741971039351,-570.54,8.493e-05,2]
[356150049,1741971039361,-519.7,8.493e-05,2]
[356150050,1741971039372,-500.0,8.493e-05,2]
[356150051,1741971039383,-609.26,8.493e-05,2]
[356150052,1741971039393,-565.11,8.493e-05,2]
[356150055,1741971039404,-500.0,8.493e-05,2]
[356150056,1741971039415,-556.03,8.493e-05,2]
[356150058,1741971039426,-570.18,8.493e-05,2]
[356150059,1741971039437,-209.18288147,8.493e-05,2]
[356150060,1741971039450,-500.0,8.493e-05,2]
[356150061,1741971039461,-500.0,8.493e-05,2]
[356150062,1741971039472,-800.41,8.493e-05,2]
[356150063,1741971039483,-500.0,8.493e-05,2]
[356150064,1741971039494,-500.0,8.493e-05,2]
[356150065,1741971039505,-500.0,8.493e-05,2]
[356150066,1741971039515,-500.0,8.493e-05,2]
[356150067,1741971039527,-500.0,8.493e-05,2]
[356150068,1741971039538,-591.75,8.493e-05,2]
[356150069,1741971039549,-500.0,8.493e-05,2]
[356150070,1741971039559,-500.0,8.493e-05,2]
[356150071,1741971039569,-500.0,8.493e-05,2]
[356150072,1741971039580,-500.0,8.493e-05,2]
[356150073,1741971039591,-500.0,8.493e-05,2]
[356150074,1741971039602,-500.0,8.493e-05,2]
[356150075,1741971039614,-500.0,8.493e-05,2]
[356150076,1741971039624,-500.0,8.493e-05,2]
[356150077,1741971039635,-500.0,8.493e-05,2]
[356150078,1741971039646,-500.0,8.493e-05,2]
[356150080,1741971039657,-500.0,8.493e-05,2]
[356150081,1741971039668,-500.0,8.493e-05,2]
[356150082,1741971039679,-500.0,8.493e-05,2]
[356150083,1741971039692,-500.0,8.493e-05,2]
[356150084,1741971039704,-500.0,8.493e-05,2]
[356150085,1741971039715,-1285.52,8.493e-05,2]
[356150086,1741971039726,-500.0,8.493e-05,2]
[356150087,1741971039738,-500.0,8.493e-05,2]
[356150088,1741971039748,-500.0,8.493e-05,2]
[356150089,1741971039759,-500.0,8.493e-05,2]
[356150091,1741971039771,-1177.44,8.493e-05,2]
[356150093,1741971039782,-608.57,8.493e-05,2]
[356150094,1741971039792,-872.65,8.493e-05,2]
[356150095,1741971039803,-652.92,8.493e-05,2]
[356150096,1741971039814,-183.01060299,8.493e-05,2]
[356150098,1741971039824,-1163.6,8.493e-05,2]
[356150099,1741971039835,-500.0,8.493e-05,2]
[356150100,1741971039845,-500.0,8.493e-05,2]
[356150101,1741971039856,-685.44,8.493e-05,2]
[356150102,1741971039867,-500.0,8.493e-05,2]
[356150104,1741971039877,-500.0,8.493e-05,2]
[356150106,1741971039888,-537.22,8.493e-05,2]
[356150107,1741971039899,-614.3942586,8.493e-05,2]
[356150108,1741971039910,-724.94,8.493e-05,2]
[356150109,1741971039921,-590.98,8.493e-05,2]
[356150111,1741971039931,-500.0,8.493e-05,2]
[356150112,1741971039942,-500.0,8.493e-05,2]
[356150113,1741971039954,-632.11,8.493e-05,2]
[356150114,1741971039965,-500.0,8.493e-05,2]
[356150115,1741971039976,-578.81,8.493e-05,2]
[356150116,1741971039986,-551.01,8.493e-05,2]
[356150117,1741971039997,-645.61299592,8.493e-05,2]
[356150118,1741971040008,-500.0,8.493e-05,2]
[356150119,1741971040019,-546.49,8.493e-05,2]
[356150120,1741971040030,-1084.27,8.493e-05,2]
[356150121,1741971040040,-500.0,8.493e-05,2]
[356150122,1741971040051,-625.18,8.493e-05,2]
[356150123,1741971040062,-747.86,8.493e-05,2]
[356150124,1741971040073,-697.43,8.493e-05,2]
[356150125,1741971040084,-548.15,8.493e-05,2]
[356150126,1741971040094,-500.0,8.493e-05,2]
[356150127,1741971040105,-558.68,8.493e-05,2]
[356150128,1741971040115,-608.65,8.493e-05,2]
[356150129,1741971040126,-535.13,8.493e-05,2]
[356150130,1741971040137,-617.09,8.493e-05,2]
[356150131,1741971040148,-5697.51,8.493e-05,2]
[356150132,1741971040159,-451.58825032,8.493e-05,2]
[356150133,1741971040171,-500.0,8.493e-05,2]
[356150134,1741971040183,-723.41,8.493e-05,2]
[356150135,1741971040197,-500.0,8.493e-05,2]
[356150136,1741971040209,-500.0,8.493e-05,2]
[356150137,1741971040220,-500.0,8.493e-05,2]
[356150138,1741971040231,-156.95472032,8.493e-05,2]
[356150139,1741971040242,-365.04,8.493e-05,2]
[356150140,1741971040253,-500.0,8.493e-05,2]
[356150141,1741971040265,-1007.18,8.493e-05,2]
[356150142,1741971040277,-500.0,8.493e-05,2]
[356150143,1741971040288,-500.0,8.493e-05,2]
[356150144,1741971040299,-500.0,8.493e-05,2]
[356150145,1741971040309,-500.0,8.493e-05,2]
[356150146,1741971040320,-500.0,8.493e-05,2]
[356150147,1741971040331,-522.19,8.493e-05,2]
[356150148,1741971040341,-500.0,8.493e-05,2]
[356150149,1741971040352,-500.0,8.493e-05,2]
[356150150,1741971040363,-9500.25,8.493e-05,2]
[356150151,1741971040374,-722.8,8.493e-05,2]
[356150152,1741971040384,-1025.37,8.493e-05,2]
[356150153,1741971040395,-598.5,8.493e-05,2]
[356150154,1741971040406,-630.19484771,8.493e-05,2]
[356150155,1741971040417,-500.0,8.493e-05,2]
[356150156,1741971040428,-24625.6,8.493e-05,2]
[356150157,1741971040438,-500.0,8.493e-05,2]
[356150158,1741971040451,-4081.35,8.493e-05,2]
[356150159,1741971040462,-435.20623871,8.493e-05,2]
[356150160,1741971040484,-823.544997,8.493e-05,2]
[356150161,1741971040496,-63.41876429,8.493e-05,2]
[356150162,1741971040507,-852.22,8.493e-05,2]
[356150163,1741971040519,-398.58776307,8.493e-05,2]
[356150164,1741971040529,-1272.74,8.493e-05,2]
[356150165,1741971040540,-6658.17,8.493e-05,2]
[356150166,1741971040551,-500.0,8.493e-05,2]
[356150167,1741971040561,-444.9753246,8.493e-05,2]
[356150168,1741971040866,-500.0,8.219e-05,2]
[356150169,1741971040877,-55.0246754,8.493e-05,2]
[356150170,1741971040887,-1739.29,8.493e-05,2]
[356150171,1741971040898,-1712.38,8.493e-05,2]
[356150172,1741971040908,-500.0,8.493e-05,2]
[356150173,1741971040919,-3260.67663118,8.493e-05,2]
[356150185,1741971043026,-1223.11065515,8.219e-05,2]
[356150192,1741971045968,-267.12396825,8.219e-05,2]
[356150193,1741971045978,-500.0,8.219e-05,2]
[356150194,1741971045987,-669.87603175,8.493e-05,2]
[356150195,1741971045999,-843.8,8.493e-05,2]
[356150201,1741971511439,358.3644469,0.00015351,21]
[356150214,1741971931136,-833.875,8.197e-05,2]
[356150215,1741971931159,-93.72541844,8.218e-05,2]
[356150216,1741971942106,-158.72966071,8.218e-05,2]
[356150217,1741971942128,-284.65910039,8.218e-05,2]
[356150241,1741972055461,24900.0,7.459e-05,2]
[356150264,1741972232210,-215.34089961,8.218e-05,2]
[356150265,1741972232219,-296.50289417,8.218e-05,2]
[356150266,1741972232229,-448.84158733,8.219e-05,2]
[356150267,1741972232298,-51.15841267,8.219e-05,2]
[356150268,1741972232307,-522.66,8.219e-05,2]
[356150269,1741972232316,-526.18158733,8.219e-05,2]
[356150270,1741972232327,-147.10841267,8.219e-05,2]
[356150271,1741972232336,-296.30415968,8.219e-05,2]
[356150272,1741972232348,-203.69584032,8.219e-05,2]
[356150273,1741972232358,-500.0,8.219e-05,2]
[356150274,1741972232367,-500.0,8.219e-05,2]
[356150275,1741972232376,-500.0,8.219e-05,2]
[356150276,1741972232385,-500.0,8.219e-05,2]
[356150277,1741972232394,-509.7,8.219e-05,2]
[356150278,1741972232404,-503.96045951,8.219e-05,2]
[356150279,1741972232413,-574.6050224,8.219e-05,2]
[356150280,1741972232422,-542.44,8.219e-05,2]
[356150281,1741972232431,-500.0,8.219e-05,2]
[356150282,1741972232440,-500.0,8.219e-05,2]
[356150283,1741972232450,-500.0,8.219e-05,2]
[356150284,1741972232459,-500.0,8.219e-05,2]
[356150285,1741972232469,-500.0,8.219e-05,2]
[356150287,1741972232478,-485.54463778,8.219e-05,2]
[356150288,1741972232492,-557.85,8.219e-05,2]
[356150289,1741972232501,-500.0,8.219e-05,2]
[356150290,1741972232511,-500.0,8.219e-05,2]
[356150291,1741972232519,-222.45915085,8.219e-05,2]
[356150292,1741972232529,-505.09,8.219e-05,2]
[356150293,1741972232538,-500.0,8.219e-05,2]
[356150294,1741972232547,-685.54,8.219e-05,2]
[356150295,1741972232556,-1105.81,8.219e-05,2]
[356150296,1741972232566,-522.99,8.219e-05,2]
[356150297,1741972232576,-500.0,8.219e-05,2]
[356150298,1741972232585,-657.43,8.219e-05,2]
[356150299,1741972232594,-500.94,8.219e-05,2]
[356150300,1741972232604,-500.0,8.219e-05,2]
[356150301,1741972232613,-944.02,8.219e-05,2]
[356150302,1741972232623,-518.02,8.219e-05,2]
[356150303,1741972232632,-500.0,8.219e-05,2]
[356150304,1741972232641,-500.0,8.219e-05,2]
[356150305,1741972232650,-500.0,8.219e-05,2]
[356150306,1741972232660,-500.0,8.219e-05,2]
[356150307,1741972232669,-500.0,8.219e-05,2]
[356150308,1741972232678,-500.0,8.219e-05,2]
[356150309,1741972232687,-500.0,8.219e-05,2]
[356150310,1741972232696,-500.0,8.219e-05,2]
[356150311,1741972232705,-500.0,8.219e-05,2]
[356150312,1741972232715,-500.0,8.219e-05,2]
[356150313,1741972232724,-500.0,8.219e-05,2]
[356150314,1741972232734,-500.0,8.219e-05,2]
[356150315,1741972232742,-500.0,8.219e-05,2]
[356150316,1741972232751,-733.71,8.219e-05,2]
[356150317,1741972232760,-530.68,8.219e-05,2]
[356150318,1741972232770,-500.0,8.219e-05,2]
[356150319,1741972232779,-500.0,8.219e-05,2]
[356150320,1741972232788,-500.0,8.219e-05,2]
[356150321,1741972232797,-500.0,8.219e-05,2]
[356150323,1741972232807,-500.0,8.219e-05,2]
[356150324,1741972232816,-500.0,8.219e-05,2]
[356150326,1741972232825,-1178.4,8.219e-05,2]
[356150327,1741972232835,-500.0,8.219e-05,2]
[356150328,1741972232844,-500.0,8.219e-05,2]
[356150329,1741972232853,-649.96387435,8.219e-05,2]
[356150330,1741972232863,-500.0,8.219e-05,2]
[356150331,1741972232872,-500.0,8.219e-05,2]
[356150332,1741972232881,-500.0,8.219e-05,2]
[356150333,1741972232891,-500.0,8.219e-05,2]
[356150334,1741972232900,-1079.32,8.219e-05,2]
[356150335,1741972232910,-500.0,8.219e-05,2]
[356150336,1741972232919,-805.82,8.219e-05,2]
[356150337,1741972232929,-500.0,8.219e-05,2]
[356150338,1741972232940,-500.0,8.219e-05,2]
[356150339,1741972232949,-1066.63,8.219e-05,2]
[356150340,1741972232959,-500.0,8.219e-05,2]
[356150341,1741972232968,-500.0,8.219e-05,2]
[356150342,1741972232978,-500.0,8.219e-05,2]
[356150343,1741972232987,-500.0,8.219e-05,2]
[356150344,1741972232996,-500.0,8.219e-05,2]
[356150345,1741972233007,-500.0,8.219e-05,2]
[356150346,1741972233016,-500.0,8.219e-05,2]
[356150347,1741972233025,-500.0,8.219e-05,2]
[356150348,1741972233035,-500.0,8.219e-05,2]
[356150349,1741972233046,-500.0,8.219e-05,2]
[356150350,1741972233056,-500.0,8.219e-05,2]
[356150351,1741972233066,-514.07925367,8.219e-05,2]
[356150352,1741972233078,-500.0,8.219e-05,2]
[356150353,1741972233088,-799.93,8.219e-05,2]
[356150354,1741972233098,-500.0,8.219e-05,2]
[356150355,1741972233107,-500.0,8.219e-05,2]
[356150356,1741972233118,-598.51,8.219e-05,2]
[356150357,1741972233128,-628.32,8.219e-05,2]
[356150358,1741972233139,-579.44,8.219e-05,2]
[356150359,1741972233149,-500.0,8.219e-05,2]
[356150360,1741972233161,-500.0,8.219e-05,2]
[356150361,1741972233172,-500.0,8.219e-05,2]
[356150362,1741972233182,-500.0,8.219e-05,2]
[356150363,1741972233192,-527.38,8.219e-05,2]
[356150364,1741972233201,-500.0,8.219e-05,2]
[356150365,1741972233211,-500.0,8.219e-05,2]
[356150366,1741972233221,-664.53,8.219e-05,2]
[356150367,1741972233230,-993.91,8.219e-05,2]
[356150368,1741972233240,-502.47,8.219e-05,2]
[356150369,1741972233251,-500.0,8.219e-05,2]